[Event "Titled Tuesday Blitz February 01 B 2022"]
[White "Murzin, Volodar"]
[Black "Abdrlauf, Elham"]
[WhiteFideId "44155573"]
[BlackFideId "1533533"]
[WhiteElo "2585"]
[BlackElo "2334"]
[Result "0-1"]
[Round "04"]
[TimeControl "180+1"]
[Date "2022.02.01"]
[WhiteClock "0:00:03"]
[BlackClock "0:00:02"]

1. e4 {[%clk 0:03:00]}  c6 {[%clk 0:02:59]} 2. Nf3 {[%clk 0:02:58]}  d5 {[%clk 0:03:00]} 3. d3 {[%clk 0:02:58]}  Qc7 {[%clk 0:03:00]} 4. Nc3 {[%clk 0:02:56]}  dxe4 {[%clk 0:02:54]} 5. dxe4 {[%clk 0:02:56]}  e5 {[%clk 0:02:55]} 6. Bc4 {[%clk 0:02:57]}  b5 {[%clk 0:02:51]} 7. Bb3 {[%clk 0:02:56]}  h6 {[%clk 0:02:51]} 8. a4 {[%clk 0:02:55]}  b4 {[%clk 0:02:51]} 9. Ne2 {[%clk 0:02:55]}  Bc5 {[%clk 0:02:51]} 10. O-O {[%clk 0:02:51]}  Nf6 {[%clk 0:02:48]} 11. Ng3 {[%clk 0:02:51]}  O-O {[%clk 0:02:45]} 12. Nh4 {[%clk 0:02:46]}  Rd8 {[%clk 0:02:44]} 13. Qe2 {[%clk 0:02:40]}  Bg4 {[%clk 0:02:44]} 14. Qc4 {[%clk 0:02:38]}  Rd4 {[%clk 0:02:05]} 15. Qxc5 {[%clk 0:01:54]}  Na6 {[%clk 0:02:04]} 16. Qxd4 {[%clk 0:01:46]}  exd4 {[%clk 0:02:03]} 17. Nhf5 {[%clk 0:01:44]}  Bxf5 {[%clk 0:01:14]} 18. Nxf5 {[%clk 0:01:45]}  Nc5 {[%clk 0:01:03]} 19. Bc4 {[%clk 0:01:43]}  Ncxe4 {[%clk 0:00:51]} 20. Nxd4 {[%clk 0:01:40]}  Rd8 {[%clk 0:00:51]} 21. Nf3 {[%clk 0:01:37]}  Ng4 {[%clk 0:00:41]} 22. a5 {[%clk 0:01:01]}  Qd6 {[%clk 0:00:21]} 23. Be3 {[%clk 0:00:16]}  Nxe3 {[%clk 0:00:19]} 24. fxe3 {[%clk 0:00:16]}  Qc5 {[%clk 0:00:19]} 25. Bxf7+ {[%clk 0:00:17]}  Kxf7 {[%clk 0:00:15]} 26. Ng5+ {[%clk 0:00:17]}  Kg8 {[%clk 0:00:15]} 27. Nxe4 {[%clk 0:00:18]}  Qxe3+ {[%clk 0:00:15]} 28. Nf2 {[%clk 0:00:19]}  Rd2 {[%clk 0:00:15]} 29. Rae1 {[%clk 0:00:20]}  Qc5 {[%clk 0:00:14]} 30. c3 {[%clk 0:00:19]}  bxc3 {[%clk 0:00:13]} 31. bxc3 {[%clk 0:00:20]}  Qxc3 {[%clk 0:00:13]} 32. Ne4 {[%clk 0:00:20]}  Qd4+ {[%clk 0:00:11]} 33. Kh1 {[%clk 0:00:21]}  Ra2 {[%clk 0:00:09]} 34. Ng3 {[%clk 0:00:14]}  Qd5 {[%clk 0:00:09]} 35. Rg1 {[%clk 0:00:07]}  Qxa5 {[%clk 0:00:09]} 36. Ne4 {[%clk 0:00:03]}  Kh7 {[%clk 0:00:06]} 37. h3 {[%clk 0:00:02]}  Ra3 {[%clk 0:00:05]} 38. Rc1 {[%clk 0:00:02]}  Qd5 {[%clk 0:00:06]} 39. Nf2 {[%clk 0:00:03]}  Ra2 {[%clk 0:00:04]} 40. Rgf1 {[%clk 0:00:04]}  Qg5 {[%clk 0:00:03]} 41. Kg1 {[%clk 0:00:05]}  Qe3 {[%clk 0:00:03]} 42. Rxc6 {[%clk 0:00:04]}  Re2 {[%clk 0:00:02]} 43. Ra6 {[%clk 0:00:04]}  Re1 {[%clk 0:00:03]} 44. Ra1 {[%clk 0:00:02]}  Rxf1+ {[%clk 0:00:03]} 45. Kxf1 {[%clk 0:00:03]}  Qb6 {[%clk 0:00:02]} 46. Kg1 {[%clk 0:00:03]}  a5 {[%clk 0:00:03]} 47. Kf1 {[%clk 0:00:03]}  a4 {[%clk 0:00:02]} 48. Nd3 {[%clk 0:00:03]}  Qf6+ {[%clk 0:00:02]} 0-1


[Site "https://www.chess.com"]

[Event "Titled Tuesday Blitz February 01 B 2022"]
[White "Niemann, Hans Moke"]
[Black "Bok, Benjamin"]
[WhiteFideId "2093596"]
[BlackFideId "1017063"]
[WhiteElo "2636"]
[BlackElo "2658"]
[Result "0-1"]
[Round "04"]
[TimeControl "180+1"]
[Date "2022.02.01"]
[WhiteClock "0:00:01"]
[BlackClock "0:00:08"]

1. d4 {[%clk 0:03:00]}  d5 {[%clk 0:03:00]} 2. Nc3 {[%clk 0:02:58]}  Nf6 {[%clk 0:03:00]} 3. Bf4 {[%clk 0:02:58]}  c5 {[%clk 0:03:00]} 4. e4 {[%clk 0:02:58]}  dxe4 {[%clk 0:02:45]} 5. dxc5 {[%clk 0:02:57]}  Qa5 {[%clk 0:02:25]} 6. Bb5+ {[%clk 0:02:04]}  Bd7 {[%clk 0:02:25]} 7. a4 {[%clk 0:01:29]}  a6 {[%clk 0:02:14]} 8. Bc4 {[%clk 0:00:57]}  Qxc5 {[%clk 0:02:04]} 9. Bb3 {[%clk 0:00:56]}  e6 {[%clk 0:02:00]} 10. Nge2 {[%clk 0:00:56]}  Be7 {[%clk 0:02:00]} 11. O-O {[%clk 0:00:48]}  O-O {[%clk 0:01:55]} 12. Ng3 {[%clk 0:00:47]}  Bc6 {[%clk 0:01:51]} 13. Qe2 {[%clk 0:00:48]}  Nbd7 {[%clk 0:01:47]} 14. Rad1 {[%clk 0:00:23]}  Rfd8 {[%clk 0:01:43]} 15. Ngxe4 {[%clk 0:00:23]}  Nxe4 {[%clk 0:01:44]} 16. Nxe4 {[%clk 0:00:23]}  Qb4 {[%clk 0:01:25]} 17. f3 {[%clk 0:00:20]}  Bxe4 {[%clk 0:01:13]} 18. fxe4 {[%clk 0:00:08]}  Nc5 {[%clk 0:01:13]} 19. Bd2 {[%clk 0:00:04]}  Qxe4 {[%clk 0:01:07]} 20. Qf2 {[%clk 0:00:04]}  Qg6 {[%clk 0:01:02]} 21. Be3 {[%clk 0:00:04]}  Nxb3 {[%clk 0:00:57]} 22. cxb3 {[%clk 0:00:05]}  h6 {[%clk 0:00:54]} 23. Qf3 {[%clk 0:00:04]}  b5 {[%clk 0:00:17]} 24. Bb6 {[%clk 0:00:03]}  Re8 {[%clk 0:00:09]} 25. a5 {[%clk 0:00:01]}  Rac8 {[%clk 0:00:08]} 0-1


[Site "https://www.chess.com"]

[Event "Titled Tuesday Blitz February 01 B 2022"]
[White "Postnikov, Daniil"]
[Black "Lysyj, Igor"]
[WhiteFideId "4166329"]
[BlackFideId "4150120"]
[WhiteElo "2261"]
[BlackElo "2611"]
[Result "0-1"]
[Round "04"]
[TimeControl "180+1"]
[Date "2022.02.01"]
[WhiteClock "0:01:37"]
[BlackClock "0:02:13"]

1. e4 {[%clk 0:03:00]}  e5 {[%clk 0:02:56]} 2. Nf3 {[%clk 0:03:00]}  Nc6 {[%clk 0:02:56]} 3. Nc3 {[%clk 0:02:59]}  Nf6 {[%clk 0:02:55]} 4. Bb5 {[%clk 0:02:59]}  Nd4 {[%clk 0:02:46]} 5. Bc4 {[%clk 0:02:59]}  Bc5 {[%clk 0:02:42]} 6. h3 {[%clk 0:02:58]}  d6 {[%clk 0:02:41]} 7. d3 {[%clk 0:02:58]}  O-O {[%clk 0:02:40]} 8. Nxd4 {[%clk 0:02:49]}  Bxd4 {[%clk 0:02:39]} 9. Bb3 {[%clk 0:02:37]}  c6 {[%clk 0:02:36]} 10. Be3 {[%clk 0:02:29]}  Bxe3 {[%clk 0:02:33]} 11. fxe3 {[%clk 0:02:28]}  a5 {[%clk 0:02:33]} 12. a4 {[%clk 0:02:27]}  Nd7 {[%clk 0:02:32]} 13. d4 {[%clk 0:02:22]}  Qh4+ {[%clk 0:02:30]} 14. Kd2 {[%clk 0:02:16]}  Qg5 {[%clk 0:02:30]} 15. Qg4 {[%clk 0:02:01]}  Qh6 {[%clk 0:02:24]} 16. Kd3 {[%clk 0:01:37]}  exd4 {[%clk 0:02:13]} 0-1


[Site "https://www.chess.com"]

[Event "Titled Tuesday Blitz February 01 B 2022"]
[White "Praggnanandhaa R"]
[Black "Hess, Robert"]
[WhiteFideId "25059530"]
[BlackFideId "2022036"]
[WhiteElo "2599"]
[BlackElo "2557"]
[Result "1-0"]
[Round "04"]
[TimeControl "180+1"]
[Date "2022.02.01"]
[WhiteClock "0:00:32"]
[BlackClock "0:00:02"]

1. Nf3 {[%clk 0:03:00]}  g6 {[%clk 0:02:59]} 2. e4 {[%clk 0:02:59]}  Bg7 {[%clk 0:02:59]} 3. d4 {[%clk 0:02:59]}  d6 {[%clk 0:02:59]} 4. Bc4 {[%clk 0:02:59]}  e6 {[%clk 0:02:59]} 5. O-O {[%clk 0:02:58]}  Ne7 {[%clk 0:03:00]} 6. c3 {[%clk 0:02:57]}  a6 {[%clk 0:03:00]} 7. Bb3 {[%clk 0:02:54]}  Nd7 {[%clk 0:03:00]} 8. Re1 {[%clk 0:02:54]}  b6 {[%clk 0:03:01]} 9. Nbd2 {[%clk 0:02:55]}  Bb7 {[%clk 0:03:00]} 10. Nf1 {[%clk 0:02:55]}  h6 {[%clk 0:03:00]} 11. h4 {[%clk 0:02:56]}  c5 {[%clk 0:02:50]} 12. Ng3 {[%clk 0:02:55]}  Qc7 {[%clk 0:02:46]} 13. Bf4 {[%clk 0:02:53]}  e5 {[%clk 0:02:40]} 14. Be3 {[%clk 0:02:52]}  Nf6 {[%clk 0:02:33]} 15. Bc2 {[%clk 0:02:40]}  Ng4 {[%clk 0:02:29]} 16. Bc1 {[%clk 0:02:32]}  cxd4 {[%clk 0:02:12]} 17. cxd4 {[%clk 0:02:32]}  h5 {[%clk 0:01:35]} 18. Bg5 {[%clk 0:02:21]}  exd4 {[%clk 0:01:27]} 19. Rc1 {[%clk 0:02:09]}  Nc6 {[%clk 0:00:59]} 20. Bb3 {[%clk 0:02:05]}  Qd7 {[%clk 0:00:51]} 21. Bd5 {[%clk 0:02:02]}  O-O {[%clk 0:00:47]} 22. Bxc6 {[%clk 0:01:49]}  Bxc6 {[%clk 0:00:47]} 23. Nxd4 {[%clk 0:01:49]}  Bb7 {[%clk 0:00:46]} 24. Qd2 {[%clk 0:01:22]}  Rac8 {[%clk 0:00:39]} 25. f3 {[%clk 0:01:11]}  Qa4 {[%clk 0:00:26]} 26. Ndf5 {[%clk 0:01:05]}  gxf5 {[%clk 0:00:23]} 27. Nxf5 {[%clk 0:01:05]}  Rxc1 {[%clk 0:00:13]} 28. Rxc1 {[%clk 0:01:02]}  Be5 {[%clk 0:00:10]} 29. Be7 {[%clk 0:00:32]}  Re8 {[%clk 0:00:02]} 30. Qg5+ {[%clk 0:00:31]}  Kh7 {[%clk 0:00:02]} 31. Qxh5+ {[%clk 0:00:32]} 1-0


[Site "https://www.chess.com"]

[Event "Titled Tuesday Blitz February 01 B 2022"]
[White "Romanchuk, Viktor"]
[Black "Nakamura, Hikaru"]
[WhiteFideId "14109271"]
[BlackFideId "2016192"]
[WhiteElo "2242"]
[BlackElo "2850"]
[Result "0-1"]
[Round "04"]
[TimeControl "180+1"]
[Date "2022.02.01"]
[WhiteClock "0:00:17"]
[BlackClock "0:01:41"]

1. d4 {[%clk 0:03:00]}  g6 {[%clk 0:02:59]} 2. c4 {[%clk 0:02:59]}  Bg7 {[%clk 0:02:59]} 3. Nf3 {[%clk 0:03:00]}  f5 {[%clk 0:02:57]} 4. g3 {[%clk 0:02:59]}  d6 {[%clk 0:02:56]} 5. Bg2 {[%clk 0:02:59]}  Nf6 {[%clk 0:02:57]} 6. b3 {[%clk 0:02:59]}  O-O {[%clk 0:02:58]} 7. Bb2 {[%clk 0:03:00]}  c6 {[%clk 0:02:58]} 8. Nbd2 {[%clk 0:02:58]}  Qa5 {[%clk 0:02:58]} 9. O-O {[%clk 0:02:52]}  Nbd7 {[%clk 0:02:55]} 10. Ng5 {[%clk 0:02:23]}  Nb8 {[%clk 0:02:55]} 11. Ngf3 {[%clk 0:02:17]}  Re8 {[%clk 0:02:53]} 12. a3 {[%clk 0:02:10]}  e5 {[%clk 0:02:52]} 13. b4 {[%clk 0:02:10]}  Qc7 {[%clk 0:02:52]} 14. dxe5 {[%clk 0:02:06]}  dxe5 {[%clk 0:02:52]} 15. c5 {[%clk 0:02:07]}  e4 {[%clk 0:02:47]} 16. Nd4 {[%clk 0:02:03]}  Be6 {[%clk 0:02:35]} 17. Nxe6 {[%clk 0:01:58]}  Rxe6 {[%clk 0:02:36]} 18. Nc4 {[%clk 0:01:58]}  Nd5 {[%clk 0:02:36]} 19. Bxg7 {[%clk 0:01:51]}  Qxg7 {[%clk 0:02:37]} 20. f3 {[%clk 0:01:38]}  Nd7 {[%clk 0:02:20]} 21. fxe4 {[%clk 0:01:34]}  fxe4 {[%clk 0:02:21]} 22. Qc2 {[%clk 0:01:14]}  Qc3 {[%clk 0:02:10]} 23. Qxc3 {[%clk 0:01:03]}  Nxc3 {[%clk 0:02:11]} 24. e3 {[%clk 0:01:02]}  Re7 {[%clk 0:02:05]} 25. Nd6 {[%clk 0:00:59]}  Ne5 {[%clk 0:02:04]} 26. Rf2 {[%clk 0:00:53]}  a5 {[%clk 0:01:51]} 27. Rc1 {[%clk 0:00:40]}  axb4 {[%clk 0:01:50]} 28. axb4 {[%clk 0:00:39]}  Nd5 {[%clk 0:01:51]} 29. Rb1 {[%clk 0:00:33]}  Nd3 {[%clk 0:01:41]} 30. Re2 {[%clk 0:00:25]}  Nc3 {[%clk 0:01:41]} 31. Rbe1 {[%clk 0:00:20]}  Nxe2+ {[%clk 0:01:40]} 32. Rxe2 {[%clk 0:00:21]}  Ra1+ {[%clk 0:01:41]} 33. Bf1 {[%clk 0:00:17]}  Nxb4 {[%clk 0:01:41]} 0-1


[Site "https://www.chess.com"]

[Event "Titled Tuesday Blitz February 01 B 2022"]
[White "Steinberg, Nitzan"]
[Black "Hua, Lefong"]
[WhiteFideId "2801795"]
[BlackFideId "2602253"]
[WhiteElo "2440"]
[BlackElo "2575"]
[Result "1/2-1/2"]
[Round "04"]
[TimeControl "180+1"]
[Date "2022.02.01"]
[WhiteClock "0:00:08"]
[BlackClock "0:00:32"]

1. c4 {[%clk 0:02:58]}  Nf6 {[%clk 0:02:59]} 2. Nc3 {[%clk 0:02:57]}  g6 {[%clk 0:03:00]} 3. g3 {[%clk 0:02:56]}  Bg7 {[%clk 0:03:00]} 4. Bg2 {[%clk 0:02:57]}  O-O {[%clk 0:03:01]} 5. Nf3 {[%clk 0:02:57]}  c5 {[%clk 0:03:00]} 6. d4 {[%clk 0:02:56]}  d6 {[%clk 0:03:00]} 7. O-O {[%clk 0:02:55]}  Nc6 {[%clk 0:03:00]} 8. d5 {[%clk 0:02:49]}  Na5 {[%clk 0:02:59]} 9. Nd2 {[%clk 0:02:48]}  a6 {[%clk 0:02:59]} 10. Rb1 {[%clk 0:02:40]}  e6 {[%clk 0:02:52]} 11. dxe6 {[%clk 0:02:35]}  Bxe6 {[%clk 0:02:51]} 12. b3 {[%clk 0:02:35]}  Rb8 {[%clk 0:02:50]} 13. Bb2 {[%clk 0:02:32]}  b5 {[%clk 0:02:49]} 14. cxb5 {[%clk 0:02:31]}  axb5 {[%clk 0:02:49]} 15. Nde4 {[%clk 0:02:31]}  Ne8 {[%clk 0:02:30]} 16. h4 {[%clk 0:02:22]}  b4 {[%clk 0:02:20]} 17. Nd5 {[%clk 0:02:20]}  Nc6 {[%clk 0:02:15]} 18. Nf4 {[%clk 0:02:10]}  Qe7 {[%clk 0:02:07]} 19. Nxc5 {[%clk 0:02:03]}  dxc5 {[%clk 0:02:00]} 20. Bxc6 {[%clk 0:02:03]}  Nd6 {[%clk 0:01:53]} 21. Bxg7 {[%clk 0:01:56]}  Kxg7 {[%clk 0:01:54]} 22. Qc1 {[%clk 0:01:55]}  Qf6 {[%clk 0:01:51]} 23. Qxc5 {[%clk 0:01:52]}  Bf5 {[%clk 0:01:50]} 24. Rbd1 {[%clk 0:01:43]}  Rfd8 {[%clk 0:01:49]} 25. Nd5 {[%clk 0:01:43]}  Qe5 {[%clk 0:01:46]} 26. f4 {[%clk 0:01:34]}  Qb2 {[%clk 0:01:44]} 27. Qd4+ {[%clk 0:01:20]}  Qxd4+ {[%clk 0:01:44]} 28. Rxd4 {[%clk 0:01:21]}  Nb5 {[%clk 0:01:31]} 29. Bxb5 {[%clk 0:01:11]}  Rxb5 {[%clk 0:01:32]} 30. Rfd1 {[%clk 0:01:11]}  Bg4 {[%clk 0:01:26]} 31. Kf2 {[%clk 0:01:04]}  Rdb8 {[%clk 0:01:24]} 32. R1d2 {[%clk 0:00:59]}  Be6 {[%clk 0:01:23]} 33. e4 {[%clk 0:01:00]}  Bxd5 {[%clk 0:01:23]} 34. Rxd5 {[%clk 0:00:59]}  R5b7 {[%clk 0:01:22]} 35. Rd7 {[%clk 0:00:59]}  Rxd7 {[%clk 0:01:20]} 36. Rxd7 {[%clk 0:00:59]}  Ra8 {[%clk 0:01:21]} 37. Rd2 {[%clk 0:01:00]}  Kf6 {[%clk 0:01:20]} 38. Ke3 {[%clk 0:01:00]}  Ke6 {[%clk 0:01:20]} 39. g4 {[%clk 0:00:58]}  h5 {[%clk 0:01:20]} 40. gxh5 {[%clk 0:00:58]}  gxh5 {[%clk 0:01:21]} 41. f5+ {[%clk 0:00:59]}  Ke5 {[%clk 0:01:22]} 42. Rd5+ {[%clk 0:00:57]}  Kf6 {[%clk 0:01:22]} 43. Rb5 {[%clk 0:00:46]}  Rxa2 {[%clk 0:01:21]} 44. Kf4 {[%clk 0:00:43]}  Rf2+ {[%clk 0:01:19]} 45. Kg3 {[%clk 0:00:42]}  Re2 {[%clk 0:01:19]} 46. Kf3 {[%clk 0:00:39]}  Rh2 {[%clk 0:01:18]} 47. Rxb4 {[%clk 0:00:39]}  Rh3+ {[%clk 0:01:16]} 48. Kg2 {[%clk 0:00:34]}  Re3 {[%clk 0:01:12]} 49. Kf2 {[%clk 0:00:33]}  Rh3 {[%clk 0:01:11]} 50. Rb7 {[%clk 0:00:18]}  Rxh4 {[%clk 0:01:08]} 51. Ke3 {[%clk 0:00:18]}  Ke5 {[%clk 0:01:04]} 52. Rb5+ {[%clk 0:00:14]}  Kf6 {[%clk 0:01:00]} 53. Kd4 {[%clk 0:00:15]}  Rh1 {[%clk 0:00:56]} 54. Rb6+ {[%clk 0:00:15]}  Kg7 {[%clk 0:00:57]} 55. Ke5 {[%clk 0:00:13]}  h4 {[%clk 0:00:57]} 56. Rc6 {[%clk 0:00:12]}  h3 {[%clk 0:00:57]} 57. Rc3 {[%clk 0:00:09]}  h2 {[%clk 0:00:56]} 58. Rh3 {[%clk 0:00:09]}  Rb1 {[%clk 0:00:54]} 59. Rxh2 {[%clk 0:00:09]}  Rxb3 {[%clk 0:00:54]} 60. Rg2+ {[%clk 0:00:09]}  Kf8 {[%clk 0:00:53]} 61. Kf4 {[%clk 0:00:10]}  f6 {[%clk 0:00:51]} 62. Ra2 {[%clk 0:00:10]}  Rb1 {[%clk 0:00:48]} 63. Ra7 {[%clk 0:00:08]}  Re1 {[%clk 0:00:46]} 64. Kf3 {[%clk 0:00:06]}  Ke8 {[%clk 0:00:46]} 65. Ra4 {[%clk 0:00:03]}  Kf7 {[%clk 0:00:45]} 66. Kf2 {[%clk 0:00:04]}  Rb1 {[%clk 0:00:44]} 67. Ke3 {[%clk 0:00:04]}  Rd1 {[%clk 0:00:43]} 68. Rd4 {[%clk 0:00:04]}  Re1+ {[%clk 0:00:44]} 69. Kd2 {[%clk 0:00:04]}  Ra1 {[%clk 0:00:42]} 70. Kc3 {[%clk 0:00:05]}  Rc1+ {[%clk 0:00:41]} 71. Kb4 {[%clk 0:00:05]}  Ke7 {[%clk 0:00:41]} 72. Rc4 {[%clk 0:00:04]}  Rb1+ {[%clk 0:00:41]} 73. Kc5 {[%clk 0:00:05]}  Rd1 {[%clk 0:00:41]} 74. Rd4 {[%clk 0:00:05]}  Ra1 {[%clk 0:00:40]} 75. Kc4 {[%clk 0:00:04]}  Rc1+ {[%clk 0:00:39]} 76. Kd3 {[%clk 0:00:05]}  Ra1 {[%clk 0:00:39]} 77. Ke3 {[%clk 0:00:04]}  Re1+ {[%clk 0:00:39]} 78. Kf2 {[%clk 0:00:04]}  Ra1 {[%clk 0:00:39]} 79. Rb4 {[%clk 0:00:04]}  Ra3 {[%clk 0:00:39]} 80. Rb6 {[%clk 0:00:03]}  Kf7 {[%clk 0:00:38]} 81. Re6 {[%clk 0:00:03]}  Rb3 {[%clk 0:00:39]} 82. Rd6 {[%clk 0:00:03]}  Ra3 {[%clk 0:00:39]} 83. Rd2 {[%clk 0:00:04]}  Rb3 {[%clk 0:00:39]} 84. Ke2 {[%clk 0:00:04]}  Ra3 {[%clk 0:00:39]} 85. Rd3 {[%clk 0:00:05]}  Ra2+ {[%clk 0:00:39]} 86. Ke3 {[%clk 0:00:05]}  Ra4 {[%clk 0:00:40]} 87. Kf4 {[%clk 0:00:06]}  Ke7 {[%clk 0:00:38]} 88. Rh3 {[%clk 0:00:06]}  Kf7 {[%clk 0:00:37]} 89. Rh7+ {[%clk 0:00:06]}  Kf8 {[%clk 0:00:38]} 90. Rc7 {[%clk 0:00:07]}  Rb4 {[%clk 0:00:38]} 91. Rc6 {[%clk 0:00:06]}  Kf7 {[%clk 0:00:38]} 92. Rc7+ {[%clk 0:00:07]}  Kf8 {[%clk 0:00:38]} 93. Rc3 {[%clk 0:00:07]}  Kf7 {[%clk 0:00:37]} 94. Re3 {[%clk 0:00:07]}  Ra4 {[%clk 0:00:37]} 95. Kg4 {[%clk 0:00:08]}  Ra1 {[%clk 0:00:38]} 96. Rg3 {[%clk 0:00:07]}  Re1 {[%clk 0:00:35]} 97. Kf4 {[%clk 0:00:07]}  Rf1+ {[%clk 0:00:35]} 98. Rf3 {[%clk 0:00:07]}  Re1 {[%clk 0:00:35]} 99. Re3 {[%clk 0:00:07]}  Rf1+ {[%clk 0:00:36]} 100. Kg3 {[%clk 0:00:08]}  Rg1+ {[%clk 0:00:36]} 101. Kf2 {[%clk 0:00:08]}  Ra1 {[%clk 0:00:36]} 102. Ke2 {[%clk 0:00:09]}  Ra4 {[%clk 0:00:36]} 103. Kd3 {[%clk 0:00:09]}  Rb4 {[%clk 0:00:36]} 104. Kc3 {[%clk 0:00:09]}  Ra4 {[%clk 0:00:36]} 105. Re1 {[%clk 0:00:08]}  Ke7 {[%clk 0:00:35]} 106. Kd3 {[%clk 0:00:07]}  Kf7 {[%clk 0:00:35]} 107. Ke3 {[%clk 0:00:07]}  Ke7 {[%clk 0:00:33]} 108. Kf4 {[%clk 0:00:08]}  Kf7 {[%clk 0:00:34]} 109. Kg4 {[%clk 0:00:08]}  Ra2 {[%clk 0:00:33]} 110. Rg1 {[%clk 0:00:08]}  Re2 {[%clk 0:00:33]} 111. Kf4 {[%clk 0:00:08]}  Ke7 {[%clk 0:00:32]} 1/2-1/2


[Site "https://www.chess.com"]

[Event "Titled Tuesday Blitz February 01 B 2022"]
[White "Tang, Andrew"]
[Black "Erigaisi Arjun"]
[WhiteFideId "2059630"]
[BlackFideId "35009192"]
[WhiteElo "2584"]
[BlackElo "2745"]
[Result "1/2-1/2"]
[Round "04"]
[TimeControl "180+1"]
[Date "2022.02.01"]
[WhiteClock "0:00:03"]
[BlackClock "0:00:13"]

1. d4 {[%clk 0:03:00]}  e6 {[%clk 0:03:00]} 2. Nf3 {[%clk 0:02:54]}  c5 {[%clk 0:02:59]} 3. c3 {[%clk 0:02:54]}  Nc6 {[%clk 0:02:57]} 4. Bf4 {[%clk 0:02:54]}  Qb6 {[%clk 0:02:57]} 5. Qd2 {[%clk 0:02:49]}  Nf6 {[%clk 0:02:55]} 6. e3 {[%clk 0:02:49]}  Nh5 {[%clk 0:02:52]} 7. Bg5 {[%clk 0:02:39]}  h6 {[%clk 0:02:52]} 8. Bh4 {[%clk 0:02:39]}  d5 {[%clk 0:02:43]} 9. Bd3 {[%clk 0:02:16]}  Bd7 {[%clk 0:02:42]} 10. O-O {[%clk 0:02:06]}  g5 {[%clk 0:02:42]} 11. Bg3 {[%clk 0:02:06]}  Nxg3 {[%clk 0:02:42]} 12. hxg3 {[%clk 0:02:07]}  c4 {[%clk 0:02:32]} 13. Be2 {[%clk 0:02:04]}  Qc7 {[%clk 0:02:32]} 14. b3 {[%clk 0:02:00]}  b5 {[%clk 0:02:32]} 15. a4 {[%clk 0:02:00]}  Na5 {[%clk 0:02:32]} 16. bxc4 {[%clk 0:01:51]}  Nb3 {[%clk 0:02:31]} 17. Qb2 {[%clk 0:01:44]}  bxc4 {[%clk 0:02:29]} 18. Ra2 {[%clk 0:01:43]}  Rb8 {[%clk 0:02:27]} 19. Qc2 {[%clk 0:01:42]}  Bd6 {[%clk 0:02:22]} 20. Nbd2 {[%clk 0:01:40]}  f5 {[%clk 0:02:17]} 21. Rb1 {[%clk 0:01:38]}  Nxd2 {[%clk 0:02:17]} 22. Nxd2 {[%clk 0:01:38]}  Rxb1+ {[%clk 0:02:05]} 23. Nxb1 {[%clk 0:01:35]}  g4 {[%clk 0:02:02]} 24. e4 {[%clk 0:01:14]}  fxe4 {[%clk 0:01:57]} 25. Bxg4 {[%clk 0:01:14]}  h5 {[%clk 0:01:52]} 26. Bh3 {[%clk 0:01:10]}  h4 {[%clk 0:01:45]} 27. gxh4 {[%clk 0:01:09]}  Bh2+ {[%clk 0:01:42]} 28. Kf1 {[%clk 0:00:56]}  Rxh4 {[%clk 0:01:41]} 29. Na3 {[%clk 0:00:47]}  Qf4 {[%clk 0:01:34]} 30. Qd2 {[%clk 0:00:23]}  Qxd2 {[%clk 0:00:57]} 31. Rxd2 {[%clk 0:00:23]}  Ke7 {[%clk 0:00:57]} 32. Rb2 {[%clk 0:00:20]}  Bc6 {[%clk 0:00:53]} 33. Nb5 {[%clk 0:00:17]}  Bb8 {[%clk 0:00:53]} 34. a5 {[%clk 0:00:13]}  a6 {[%clk 0:00:50]} 35. Na3 {[%clk 0:00:14]}  Bc7 {[%clk 0:00:51]} 36. Nc2 {[%clk 0:00:12]}  Bxa5 {[%clk 0:00:47]} 37. Ra2 {[%clk 0:00:13]}  Bxc3 {[%clk 0:00:48]} 38. Rxa6 {[%clk 0:00:13]}  Bd7 {[%clk 0:00:47]} 39. Ra3 {[%clk 0:00:08]}  Bd2 {[%clk 0:00:43]} 40. Ke2 {[%clk 0:00:07]}  c3 {[%clk 0:00:40]} 41. Ra7 {[%clk 0:00:07]}  Kd6 {[%clk 0:00:38]} 42. Ra6+ {[%clk 0:00:07]}  Kc7 {[%clk 0:00:39]} 43. Na3 {[%clk 0:00:06]}  Rh6 {[%clk 0:00:19]} 44. Kd1 {[%clk 0:00:04]}  Bc8 {[%clk 0:00:16]} 45. Ra5 {[%clk 0:00:04]}  Kd6 {[%clk 0:00:14]} 46. Nb1 {[%clk 0:00:04]}  Bg5 {[%clk 0:00:10]} 47. Nxc3 {[%clk 0:00:04]}  Bd7 {[%clk 0:00:11]} 48. Nxe4+ {[%clk 0:00:04]}  dxe4 {[%clk 0:00:10]} 49. Rxg5 {[%clk 0:00:05]}  Rh4 {[%clk 0:00:10]} 50. Kd2 {[%clk 0:00:05]}  Rh8 {[%clk 0:00:09]} 51. Ke3 {[%clk 0:00:06]}  Bc6 {[%clk 0:00:10]} 52. Rg6 {[%clk 0:00:03]}  Bd5 {[%clk 0:00:10]} 53. Bg4 {[%clk 0:00:03]}  Rh1 {[%clk 0:00:10]} 54. g3 {[%clk 0:00:03]}  Re1+ {[%clk 0:00:10]} 55. Kd2 {[%clk 0:00:03]}  Ra1 {[%clk 0:00:11]} 56. Be2 {[%clk 0:00:04]}  Ra2+ {[%clk 0:00:11]} 57. Ke3 {[%clk 0:00:04]}  Ra3+ {[%clk 0:00:12]} 58. Kf4 {[%clk 0:00:05]}  Ra2 {[%clk 0:00:12]} 59. Ke3 {[%clk 0:00:03]}  Ra3+ {[%clk 0:00:13]} 60. Kd2 {[%clk 0:00:04]}  Ra2+ {[%clk 0:00:13]} 61. Kd1 {[%clk 0:00:03]}  Ra1+ {[%clk 0:00:12]} 62. Kd2 {[%clk 0:00:03]}  Ra2+ {[%clk 0:00:13]} 1/2-1/2


[Site "https://www.chess.com"]